fUST/lending_fUST_20250929
["ID","MTS","AMOUNT","RATE_DAILY","PERIOD"]
[388379426,1759138243527,-151.0,0.00027195,2]
[388379427,1759138243537,-500.0,0.000272,10]
[388379428,1759138243546,-151.0,0.000272,10]
[388379429,1759138243555,-460.0,0.000272,2]
[388379430,1759138243564,-150000.0,0.00027216,2]
[388379431,1759138243574,-101705.36826255,0.00027216,2]
[388379432,1759138243583,-151.0,0.00027216,7]
[388379433,1759138243592,-151.0,0.00027216,7]
[388379434,1759138243602,-151.0,0.00027216,7]
[388379435,1759138243612,-151.0,0.00027216,7]
[388379436,1759138243621,-151.0,0.00027216,7]
[388379437,1759138243631,-151.0,0.00027216,7]
[388379438,1759138243639,-151.0,0.00027216,7]
[388379439,1759138243649,-166.987989,0.00027216,7]
[388379440,1759138243658,-151.0,0.00027216,7]
[388379441,1759138243669,-166.987989,0.00027216,7]
[388379442,1759138243678,-166.987989,0.00027216,7]
[388379443,1759138243687,-166.987989,0.00027216,7]
[388379444,1759138243697,-151.0,0.00027216,7]
[388379445,1759138243707,-151.0,0.00027216,7]
[388379446,1759138243716,-151.0,0.00027216,7]
[388379447,1759138243725,-151.0,0.00027216,7]
[388379448,1759138243735,-151.0,0.00027216,7]
[388379449,1759138243744,-234.265696,0.00027216,7]
[388379450,1759138243753,-234.265696,0.00027216,7]
[388379451,1759138243762,-234.265696,0.00027216,7]
[388379452,1759138243772,-234.265696,0.00027216,7]
[388379453,1759138243782,-151.0,0.00027216,7]
[388379454,1759138243791,-151.0,0.00027216,7]
[388379455,1759138243800,-151.0,0.00027216,7]
[388379456,1759138243810,-4498.904458,0.00027216,7]
[388379457,1759138243819,-267.025641,0.00027216,7]
[388379458,1759138243829,-4498.904458,0.00027216,7]
[388379459,1759138243839,-4498.904458,0.00027216,7]
[388379460,1759138243848,-4498.904458,0.00027216,7]
[388379461,1759138243858,-159.812187,0.00027216,7]
[388379462,1759138243867,-2923.0,0.00027216,2]
[388379463,1759138243877,-677.891366,0.00027216,7]
[388379464,1759138243886,-677.891366,0.00027216,7]
[388379465,1759138243895,-677.891366,0.00027216,7]
[388379466,1759138243905,-677.891366,0.00027216,7]
[388379467,1759138243914,-195.85823,0.00027216,7]
[388379468,1759138243924,-2000.0,0.00027216,2]
[388379469,1759138243934,-2000.0,0.00027216,2]
[388379470,1759138243945,-2000.0,0.00027216,2]
[388379471,1759138243958,-2000.0,0.00027216,2]
[388379472,1759138243968,-2000.0,0.00027216,2]
[388379473,1759138243978,-2000.0,0.00027216,2]
[388379474,1759138243987,-2000.0,0.00027216,2]
[388379475,1759138243997,-582.67825345,0.00027216,2]
[388379476,1759138244006,-269.21250505,0.00027216,2]
[388379477,1759138244016,-2000.0,0.00027216,2]
[388379478,1759138244026,-2000.0,0.00027216,2]
[388379479,1759138244036,-2000.0,0.00027216,2]
[388379480,1759138244045,-2000.0,0.00027216,2]
[388379481,1759138244055,-1634.25905714,0.00027216,2]
[388379482,1759138244070,-392.72027434,0.00027216,2]
[388379483,1759138244079,-410.0,0.00027224,2]
[388379484,1759138244089,-427.525,0.00027224,2]
[388379485,1759138244268,-979.0,0.00027224,2]
[388379486,1759138244279,-800.0,0.00027242,2]
[388379487,1759138244288,-151.0,0.00027242,7]
[388379488,1759138244298,-151.0,0.00027242,7]
[388379489,1759138244308,-214.279601,0.00027242,7]
[388379490,1759138244317,-151.0,0.00027242,7]
[388379491,1759138244326,-151.0,0.00027242,7]
[388379492,1759138244336,-151.0,0.00027242,7]
[388379493,1759138244346,-151.0,0.00027242,7]
[388379494,1759138244355,-151.0,0.00027242,7]
[388379495,1759138244365,-151.0,0.00027242,7]
[388379496,1759138244375,-800.0,0.00027244,2]
[388379497,1759138244384,-800.0,0.00027247,2]
[388379498,1759138244394,-260.0,0.00027248,2]
[388379499,1759138244404,-222.87936159,0.00027258,3]
[388379500,1759138244414,-554.418,0.0002726,16]
[388379501,1759138244423,-800.0,0.00027266,2]
[388379502,1759138244433,-800.0,0.00027267,2]
[388379503,1759138244442,-259.0,0.00027274,2]
[388379504,1759138244452,-151.0,0.00027289,2]
[388379505,1759138244461,-500.0,0.00027289,2]
[388379506,1759138244471,-151.0,0.00027289,2]
[388379507,1759138244480,-500.0,0.00027289,2]
[388379508,1759138244489,-151.0,0.00027289,2]
[388379509,1759138244498,-151.0,0.00027289,2]
[388379510,1759138244508,-151.0,0.00027289,2]
[388379511,1759138244517,-908.0,0.00027289,2]
[388379512,1759138244527,-151.0,0.00027289,2]
[388379513,1759138244536,-151.0,0.00027289,2]
[388379514,1759138244545,-500.0,0.00027289,2]
[388379515,1759138244554,-500.0,0.00027289,2]
[388379516,1759138244564,-159.84886694,0.00027289,2]
[388379517,1759138244574,-151.0,0.00027289,2]
[388379518,1759138244584,-198.0,0.00027289,2]
[388379519,1759138244596,-800.0,0.00027291,2]
[388379520,1759138244606,-177.06658731,0.00027297,2]
[388379521,1759138244615,-10975.69958458,0.00027297,2]
[388379522,1759138244624,-800.0,0.00027299,2]
[388379523,1759138244633,-7332.43746948,0.00027308,2]
[388379524,1759138244642,-6847.28731901,0.00027309,2]
[388379525,1759138244651,-800.0,0.0002732,2]
[388379526,1759138244660,-800.0,0.00027332,2]
[388379527,1759138244670,-800.0,0.00027371,2]
[388379528,1759138244679,-600.0,0.00027372,2]
[388379529,1759138244688,-500.0,0.00027373,2]
[388379530,1759138244698,-500.0,0.00027373,2]
[388379531,1759138244707,-500.0,0.00027373,2]
[388379532,1759138244717,-500.0,0.00027373,2]
[388379533,1759138244727,-500.0,0.00027373,2]
[388379534,1759138244736,-500.0,0.00027373,2]
[388379535,1759138244746,-500.0,0.00027373,2]
[388379536,1759138244755,-500.0,0.00027373,2]
[388379537,1759138244764,-500.0,0.00027373,2]
[388379538,1759138244773,-500.0,0.00027373,2]
[388379539,1759138244783,-329.02119291,0.00027373,2]
[388379540,1759138244792,-500.0,0.00027373,2]
[388379541,1759138244802,-500.0,0.00027373,2]
[388379542,1759138244812,-302.09022483,0.00027373,2]
[388379543,1759138244821,-500.0,0.00027373,2]
[388379544,1759138244831,-500.0,0.00027373,2]
[388379545,1759138244839,-501.62836604,0.00027373,2]
[388379546,1759138244848,-500.0,0.00027373,2]
[388379547,1759138244858,-500.0,0.00027373,2]
[388379548,1759138244867,-400.0,0.00027373,2]
[388379549,1759138244876,-500.0,0.00027373,2]
[388379550,1759138244886,-341.11063972,0.00027373,2]
[388379551,1759138244895,-500.0,0.00027373,2]
[388379552,1759138244906,-500.0,0.00027373,2]
[388379553,1759138244915,-500.0,0.00027373,2]
[388379554,1759138244925,-500.0,0.00027373,2]
[388379555,1759138244935,-500.0,0.00027373,2]
[388379556,1759138244944,-500.0,0.00027373,2]
[388379557,1759138244954,-509.3829313,0.00027373,2]
[388379558,1759138244963,-500.0,0.00027373,2]
[388379559,1759138244973,-175.00939999,0.00027373,2]
[388379560,1759138244982,-516.0459655,0.00027373,2]
[388379561,1759138244991,-500.0,0.00027373,2]
[388379562,1759138245000,-500.0,0.00027373,2]
[388379563,1759138245009,-500.0,0.00027373,2]
[388379564,1759138245018,-500.0,0.00027373,2]
[388379565,1759138245028,-500.0,0.00027373,2]
[388379566,1759138245037,-500.0,0.00027373,2]
[388379567,1759138245047,-500.0,0.00027373,2]
[388379568,1759138245059,-500.0,0.00027373,2]
[388379569,1759138245070,-500.0,0.00027373,2]
[388379570,1759138245079,-449.17884857,0.00027373,2]
[388379571,1759138245089,-500.0,0.00027373,2]
[388379572,1759138245099,-535.9630655,0.00027373,2]
[388379573,1759138245108,-509.86893301,0.00027373,2]
[388379574,1759138245118,-500.0,0.00027373,2]
[388379575,1759138245127,-500.0,0.00027373,2]
[388379576,1759138245140,-500.0,0.00027373,2]
[388379577,1759138245152,-500.0,0.00027373,2]
[388379578,1759138245162,-500.0,0.00027373,2]
[388379579,1759138245171,-500.0,0.00027373,2]
[388379580,1759138245181,-500.0,0.00027373,2]
[388379581,1759138245190,-500.0,0.00027373,2]
[388379582,1759138245200,-626.96163022,0.00027373,2]
[388379583,1759138245209,-500.0,0.00027373,2]
[388379584,1759138245219,-500.0,0.00027373,2]
[388379585,1759138245228,-412.82600998,0.00027373,2]
[388379586,1759138245239,-500.0,0.00027373,2]
[388379587,1759138245251,-500.0,0.00027373,2]
[388379588,1759138245261,-500.0,0.00027373,2]
[388379589,1759138245271,-500.0,0.00027373,2]
[388379590,1759138245280,-500.0,0.00027373,2]
[388379591,1759138245290,-500.0,0.00027373,2]
[388379592,1759138245299,-500.0,0.00027373,2]
[388379593,1759138245308,-500.0,0.00027373,2]
[388379594,1759138245318,-500.0,0.00027373,2]
[388379595,1759138245327,-500.0,0.00027373,2]
[388379596,1759138245336,-431.25894735,0.00027373,2]
[388379597,1759138245346,-500.0,0.00027373,2]
[388379598,1759138245355,-500.0,0.00027373,2]
[388379599,1759138245364,-151.0,0.00027373,7]
[388379600,1759138245374,-151.0,0.00027373,7]
[388379601,1759138245383,-151.0,0.00027373,7]
[388379602,1759138245393,-151.0,0.00027373,7]
[388379603,1759138245404,-151.0,0.00027373,7]
[388379604,1759138245413,-151.0,0.00027373,7]
[388379605,1759138245423,-151.0,0.00027373,7]
[388379606,1759138245432,-151.0,0.00027373,7]
[388379607,1759138245442,-151.0,0.00027373,7]
[388379608,1759138245451,-151.0,0.00027373,7]
[388379609,1759138245461,-151.0,0.00027373,7]
[388379610,1759138245470,-151.0,0.00027373,7]
[388379611,1759138245480,-151.0,0.00027373,7]
[388379612,1759138245489,-1021.287304,0.00027373,7]
[388379613,1759138245499,-1021.287304,0.00027373,7]
[388379614,1759138245508,-1021.287304,0.00027373,7]
[388379615,1759138245518,-1021.287304,0.00027373,7]
[388379616,1759138245527,-151.0,0.00027373,7]
[388379617,1759138245536,-151.0,0.00027373,7]
[388379618,1759138245545,-151.0,0.00027373,7]
[388379619,1759138245556,-588.03711757,0.00027382,2]
[388379620,1759138245564,-151.757169,0.00027387,7]
[388379621,1759138245573,-151.0,0.00027387,7]
[388379622,1759138245582,-151.0,0.00027387,7]
[388379623,1759138245591,-151.0,0.00027387,7]
[388379624,1759138245600,-151.0,0.00027387,7]
[388379625,1759138245610,-151.0,0.00027387,7]
[388379626,1759138245619,-151.0,0.00027387,7]
[388379627,1759138245628,-151.0,0.00027387,7]
[388379628,1759138245637,-151.0,0.00027387,7]
[388379629,1759138245646,-151.0,0.00027387,7]
[388379630,1759138245656,-151.0,0.00027387,7]
[388379631,1759138245666,-151.0,0.00027387,7]
[388379632,1759138245675,-151.0,0.00027387,7]
[388379633,1759138245685,-151.0,0.00027387,7]
[388379634,1759138245694,-151.0,0.00027387,7]
[388379635,1759138245704,-151.0,0.00027387,7]
[388379636,1759138245713,-161.185824,0.00027387,7]
[388379637,1759138245723,-151.0,0.00027387,7]
[388379638,1759138245732,-151.0,0.00027387,7]
[388379639,1759138245741,-166.987989,0.00027387,7]
[388379640,1759138245751,-153.24617786,0.00027387,7]
[388379641,1759138245761,-166.987989,0.00027387,7]
[388379642,1759138245770,-166.987989,0.00027387,7]
[388379643,1759138245779,-166.987989,0.00027387,7]
[388379644,1759138245789,-161.90070238,0.0002739,7]
[388379645,1759138245801,-400.0,0.0002739,7]
[388379646,1759138245811,-200.0,0.00027396,2]
[388379647,1759138245821,-200.0,0.00027396,2]
[388379648,1759138245831,-161.24248463,0.00027396,2]
[388379649,1759138245843,-544.51,0.00027397,7]
[388379650,1759138245852,-480.0,0.00027397,7]
[388379651,1759138245861,-480.0,0.00027397,7]
[388379652,1759138245871,-500.0,0.00027397,7]
[388379653,1759138245881,-574.67,0.00027397,7]
[388379654,1759138245890,-480.0,0.00027397,7]
[388379655,1759138245900,-233.87608454,0.00027397,3]
[388379656,1759138245909,-480.0,0.00027397,7]
[388379657,1759138245918,-480.0,0.00027397,7]
[388379659,1759138245927,-520.0,0.00027397,3]
[388379660,1759138245937,-480.0,0.00027397,7]
[388379661,1759138245949,-480.0,0.00027397,7]
[388379662,1759138245959,-480.0,0.00027397,7]
[388379663,1759138245970,-480.0,0.00027397,7]
[388379664,1759138245979,-480.0,0.00027397,7]
[388379665,1759138245988,-480.0,0.00027397,7]
[388379666,1759138245997,-480.0,0.00027397,7]
[388379667,1759138246007,-821.35,0.00027397,7]
[388379668,1759138246018,-480.0,0.00027397,7]
[388379669,1759138246028,-480.0,0.00027397,7]
[388379670,1759138246038,-480.0,0.00027397,7]
[388379671,1759138246050,-480.0,0.00027397,7]
[388379672,1759138246064,-480.0,0.00027397,7]
[388379673,1759138246074,-480.0,0.00027397,7]
[388379674,1759138246083,-480.0,0.00027397,7]
[388379675,1759138246092,-480.0,0.00027397,7]
[388379676,1759138246103,-480.0,0.00027397,7]
[388379677,1759138246112,-480.0,0.00027397,7]
[388379678,1759138246121,-480.0,0.00027397,7]
[388379680,1759138246130,-621.36,0.00027397,7]
[388379682,1759138246141,-480.0,0.00027397,7]
[388379684,1759138246151,-793.5,0.00027397,7]
[388379686,1759138246161,-638.48,0.00027397,7]
[388379687,1759138246170,-480.0,0.00027397,7]
[388379688,1759138246180,-480.0,0.00027397,7]
[388379689,1759138246189,-728.92,0.00027397,7]
[388379690,1759138246198,-615.48956978,0.00027397,7]
[388379691,1759138246208,-480.0,0.00027397,7]
[388379692,1759138246217,-511.37387211,0.00027397,7]
[388379693,1759138246226,-369.23758118,0.00027397,7]
[388379694,1759138246235,-480.0,0.00027397,7]
[388379695,1759138246244,-680.16,0.00027397,7]
[388379696,1759138246253,-796.01,0.00027397,7]
[388379697,1759138246263,-952.18,0.00027397,7]
[388379698,1759138246271,-480.0,0.00027397,7]
[388379699,1759138246281,-480.0,0.00027397,7]
[388379700,1759138246290,-720.44,0.00027397,7]
[388379701,1759138246299,-480.0,0.00027397,7]
[388379702,1759138246308,-480.0,0.00027397,7]
[388379703,1759138246318,-480.0,0.00027397,7]
[388379704,1759138246327,-480.0,0.00027397,7]
[388379705,1759138246336,-282.47934986,0.00027397,7]
[388379706,1759138246345,-480.0,0.00027397,7]
[388379707,1759138246355,-480.0,0.00027397,7]
[388379708,1759138246364,-480.0,0.00027397,7]
[388379709,1759138246373,-934.86,0.00027397,7]
[388379710,1759138246382,-480.0,0.00027397,7]
[388379711,1759138246391,-582.32,0.00027397,7]
[388379712,1759138246401,-480.0,0.00027397,7]
[388379713,1759138246410,-480.0,0.00027397,7]
[388379714,1759138246420,-480.0,0.00027397,7]
[388379715,1759138246431,-480.0,0.00027397,7]
[388379716,1759138246440,-480.0,0.00027397,7]
[388379717,1759138246450,-480.0,0.00027397,7]
[388379718,1759138246461,-480.0,0.00027397,7]
[388379719,1759138246470,-480.0,0.00027397,7]
[388379720,1759138246483,-1837.62,0.00027397,7]
[388379721,1759138246494,-480.0,0.00027397,7]
[388379722,1759138246503,-480.0,0.00027397,7]
[388379723,1759138246512,-480.0,0.00027397,7]
[388379724,1759138246522,-807.02,0.00027397,7]
[388379725,1759138246531,-480.0,0.00027397,7]
[388379726,1759138246541,-943.86,0.00027397,7]
[388379727,1759138246552,-480.0,0.00027397,7]
[388379728,1759138246563,-480.0,0.00027397,7]
[388379729,1759138246573,-480.0,0.00027397,7]
[388379730,1759138246582,-480.0,0.00027397,7]
[388379731,1759138246591,-480.0,0.00027397,7]
[388379732,1759138246601,-690.73,0.00027397,7]
[388379733,1759138246610,-480.0,0.00027397,7]
[388379734,1759138246619,-1027.93,0.00027397,7]
[388379735,1759138246628,-648.29,0.00027397,7]
[388379736,1759138246638,-480.0,0.00027397,7]
[388379737,1759138246647,-480.0,0.00027397,7]
[388379738,1759138246658,-480.0,0.00027397,7]
[388379739,1759138246667,-480.0,0.00027397,7]
[388379740,1759138246677,-480.0,0.00027397,7]
[388379741,1759138246686,-480.0,0.00027397,7]
[388379742,1759138246695,-901.15,0.00027397,7]
[388379743,1759138246704,-480.0,0.00027397,7]
[388379744,1759138246714,-151.0,0.00027397,7]
[388379745,1759138246723,-480.0,0.00027397,7]
[388379746,1759138246732,-480.0,0.00027397,7]
[388379747,1759138246741,-480.0,0.00027397,7]
[388379748,1759138246752,-726.93,0.00027397,7]
[388379749,1759138246762,-480.0,0.00027397,7]
[388379750,1759138246771,-480.0,0.00027397,7]
[388379751,1759138246780,-480.0,0.00027397,7]
[388379752,1759138246789,-480.0,0.00027397,7]
[388379753,1759138246798,-480.0,0.00027397,7]
[388379754,1759138246808,-151.0,0.00027397,7]
[388379755,1759138246817,-315.90706961,0.00027397,7]
[388379756,1759138246827,-151.0,0.00027397,7]
[388379757,1759138246836,-480.0,0.00027397,7]
[388379758,1759138246846,-782.1,0.00027397,7]
[388379759,1759138246855,-480.0,0.00027397,7]
[388379760,1759138246864,-151.0,0.00027397,7]
[388379761,1759138246874,-151.0,0.00027397,7]
[388379762,1759138246884,-480.0,0.00027397,7]
[388379763,1759138246893,-480.0,0.00027397,7]
[388379764,1759138246903,-151.0,0.00027397,7]
[388379765,1759138246912,-151.0,0.00027397,7]
[388379766,1759138246922,-151.0,0.00027397,7]
[388379767,1759138246932,-151.0,0.00027397,7]
[388379768,1759138246941,-934.3,0.00027397,7]
[388379769,1759138246951,-546.15,0.00027397,7]
[388379770,1759138246960,-480.0,0.00027397,7]
[388379771,1759138246970,-707.7,0.00027397,7]
[388379772,1759138246980,-1123.64,0.00027397,7]
[388379773,1759138246990,-1123.64,0.00027397,7]
[388379774,1759138246999,-1123.64,0.00027397,7]
[388379775,1759138247009,-1123.64,0.00027397,7]
[388379776,1759138247019,-1123.64,0.00027397,7]
[388379777,1759138247028,-1123.64,0.00027397,7]
[388379778,1759138247038,-1123.64,0.00027397,7]
[388379779,1759138247051,-1123.64,0.00027397,7]
[388379780,1759138247067,-1123.64,0.00027397,7]
[388379781,1759138247077,-1123.64,0.00027397,7]
[388379782,1759138247086,-1123.64,0.00027397,7]
[388379783,1759138247095,-480.0,0.00027397,7]
[388379784,1759138247107,-1123.64,0.00027397,7]
[388379785,1759138247116,-1123.64,0.00027397,7]
[388379786,1759138247126,-1123.64,0.00027397,7]
[388379787,1759138247135,-1123.64,0.00027397,7]
[388379788,1759138247145,-1123.64,0.00027397,7]
[388379789,1759138247155,-1123.64,0.00027397,7]
[388379790,1759138247164,-1123.64,0.00027397,7]
[388379791,1759138247174,-1123.64,0.00027397,7]
[388379792,1759138247184,-1123.64,0.00027397,7]
[388379793,1759138247193,-1123.64,0.00027397,7]
[388379794,1759138247202,-1123.64,0.00027397,7]
[388379795,1759138247211,-449.33448472,0.00027397,7]
[388379796,1759138247221,-1123.64,0.00027397,7]
[388379797,1759138247231,-1123.85083042,0.00027397,7]
[388379798,1759138247241,-1029.02,0.00027397,7]
[388379799,1759138247251,-480.0,0.00027397,7]
[388379800,1759138247260,-525.3,0.00027397,7]
[388379801,1759138247269,-740.3,0.00027397,7]
[388379802,1759138247279,-878.3,0.00027397,7]
[388379803,1759138247288,-480.0,0.00027397,7]
[388379804,1759138247298,-480.0,0.00027397,7]
[388379805,1759138247307,-313.4461521,0.00027397,7]
[388379806,1759138247317,-480.0,0.00027397,7]
[388379807,1759138247326,-789.95,0.00027397,7]
[388379808,1759138247336,-480.0,0.00027397,7]
[388379809,1759138247346,-823.82,0.00027397,7]
[388379810,1759138247355,-943.11,0.00027397,7]
[388379811,1759138247365,-1000.0,0.00027397,7]
[388379812,1759138247374,-480.0,0.00027397,7]
[388379813,1759138247383,-634.52,0.00027397,7]
[388379814,1759138247393,-480.0,0.00027397,7]
[388379815,1759138247402,-480.0,0.00027397,7]
[388379816,1759138247412,-480.0,0.00027397,7]
[388379817,1759138247421,-480.0,0.00027397,7]
[388379818,1759138247431,-402.44722605,0.00027397,7]
[388379819,1759138247441,-605.02,0.00027397,7]
[388379820,1759138247450,-480.0,0.00027397,7]
[388379821,1759138247459,-480.0,0.00027397,7]
[388379822,1759138247468,-480.0,0.00027397,7]
[388379823,1759138247477,-480.0,0.00027397,7]
[388379824,1759138247487,-480.0,0.00027397,7]
[388379825,1759138247496,-484.01351364,0.00027397,7]
[388379826,1759138247505,-484.09174667,0.00027397,7]
[388379827,1759138247515,-480.0,0.00027397,7]
[388379828,1759138247525,-551.42,0.00027397,7]
[388379829,1759138247534,-480.0,0.00027397,7]
[388379830,1759138247542,-480.0,0.00027397,7]
[388379831,1759138247551,-480.0,0.00027397,7]
[388379832,1759138247560,-482.07444215,0.00027397,7]
[388379833,1759138247569,-480.0,0.00027397,7]
[388379834,1759138247579,-480.0,0.00027397,7]
[388379835,1759138247589,-480.0,0.00027397,7]
[388379836,1759138247598,-480.0,0.00027397,7]
[388379837,1759138247608,-480.0,0.00027397,7]
[388379838,1759138247617,-480.0,0.00027397,7]
[388379839,1759138247627,-480.0,0.00027397,7]
[388379840,1759138247637,-151.0,0.00027397,7]
[388379841,1759138247647,-151.0,0.00027397,7]
[388379842,1759138247657,-151.0,0.00027397,7]
[388379843,1759138247669,-480.0,0.00027397,7]
[388379844,1759138247678,-480.0,0.00027397,7]
[388379845,1759138247687,-480.0,0.00027397,7]
[388379846,1759138247697,-481.09121957,0.00027397,7]
[388379847,1759138247706,-423.91916366,0.00027397,7]
[388379848,1759138247715,-673.17,0.00027397,7]
[388379849,1759138247726,-480.0,0.00027397,7]
[388379850,1759138247898,-926.52,0.00027397,7]
[388379851,1759138247931,-480.0,0.00027397,7]
[388379852,1759138247941,-522.8,0.00027397,7]
[388379853,1759138247950,-151.0,0.00027397,7]
[388379854,1759138247958,-480.0,0.00027397,7]
[388379855,1759138247967,-151.0,0.00027397,7]
[388379856,1759138247976,-151.0,0.00027397,7]
[388379857,1759138247983,-480.0,0.00027397,7]
[388379858,1759138247992,-649.72,0.00027397,7]
[388379859,1759138248001,-151.0,0.00027397,7]
[388379860,1759138248009,-151.0,0.00027397,7]
[388379861,1759138248017,-480.0,0.00027397,7]
[388379862,1759138248026,-151.0,0.00027397,7]
[388379863,1759138248034,-151.0,0.00027397,7]
[388379864,1759138248043,-480.0,0.00027397,7]
[388379865,1759138248052,-249.11112423,0.00027397,7]
[388379866,1759138248064,-481.66979238,0.00027397,7]
[388379867,1759138248074,-980.92,0.00027397,7]
[388379868,1759138248082,-480.0,0.00027397,7]
[388379869,1759138248090,-566.26745217,0.00027397,7]
[388379870,1759138248100,-480.0,0.00027397,7]
[388379871,1759138248108,-480.0,0.00027397,7]
[388379872,1759138248117,-502.6,0.00027397,7]
[388379873,1759138248125,-735.71,0.00027397,7]
[388379874,1759138248134,-711.88,0.00027397,7]
[388379875,1759138248147,-480.0,0.00027397,7]
[388379876,1759138248157,-480.0,0.00027397,7]
[388379877,1759138248166,-480.0,0.00027397,7]
[388379878,1759138248176,-502.45,0.00027397,7]
[388379879,1759138248186,-500.0,0.00027397,7]
[388379880,1759138248197,-500.0,0.00027397,7]
[388379881,1759138248207,-500.0,0.00027397,7]
[388379882,1759138248217,-507.09653027,0.00027397,7]
[388379883,1759138248227,-480.0,0.00027397,7]
[388379884,1759138248236,-450.83176503,0.00027397,7]
[388379885,1759138248246,-592.04,0.00027397,7]
[388379886,1759138248256,-480.0,0.00027397,7]
[388379887,1759138248266,-480.0,0.00027397,7]
[388379888,1759138248275,-480.0,0.00027397,7]
[388379889,1759138248285,-151.0,0.00027397,7]
[388379890,1759138248294,-480.0,0.00027397,7]
[388379891,1759138248304,-151.0,0.00027397,7]
[388379892,1759138248313,-151.0,0.00027397,7]
[388379893,1759138248322,-480.0,0.00027397,7]
[388379894,1759138248332,-269.478686,0.00027397,7]
[388379895,1759138248342,-498.66268909,0.00027397,7]
[388379896,1759138248352,-1846.64,0.00027397,7]
[388379897,1759138248361,-480.0,0.00027397,7]
[388379898,1759138248370,-546.39,0.00027397,7]
[388379899,1759138248379,-480.0,0.00027397,7]
[388379900,1759138248388,-480.0,0.00027397,7]
[388379901,1759138248397,-480.0,0.00027397,7]
[388379902,1759138248408,-480.0,0.00027397,7]
[388379903,1759138248417,-480.0,0.00027397,7]
[388379904,1759138248426,-829.51,0.00027397,7]
[388379905,1759138248436,-480.0,0.00027397,7]
[388379906,1759138248445,-1511.8,0.00027397,7]
[388379907,1759138248453,-480.0,0.00027397,7]
[388379908,1759138248462,-753.09,0.00027397,7]
[388379909,1759138248471,-480.0,0.00027397,7]
[388379910,1759138248481,-480.0,0.00027397,7]
[388379911,1759138248489,-500.0,0.00027397,7]
[388379912,1759138248499,-480.0,0.00027397,7]
[388379913,1759138248518,-480.0,0.00027397,7]
[388379914,1759138248529,-653.25,0.00027397,7]
[388379915,1759138248539,-151.0,0.00027397,7]
[388379916,1759138248549,-481.54375347,0.00027397,7]
[388379917,1759138248559,-265.019963,0.00027397,7]
[388379918,1759138248568,-151.0,0.00027397,7]
[388379919,1759138248578,-500.0,0.00027397,7]
[388379920,1759138248587,-151.0,0.00027397,7]
[388379921,1759138248597,-298.544007,0.00027397,7]
[388379922,1759138248607,-480.0,0.00027397,7]
[388379923,1759138248616,-480.0,0.00027397,7]
[388379924,1759138248627,-480.0,0.00027397,7]
[388379925,1759138248636,-583.5,0.00027397,7]
[388379926,1759138248646,-480.0,0.00027397,7]
[388379927,1759138248656,-480.0,0.00027397,7]
[388379928,1759138248666,-480.0,0.00027397,7]
[388379929,1759138248676,-480.0,0.00027397,7]
[388379930,1759138248686,-511.12,0.00027397,7]